bitfinex-derivatives/quotes_BTCF0:USTF0_20250805
["timestamp","ask_amount","ask_price","bid_price","bid_amount"]
[1754414515196,0.22814759,113350.0,113340.0,1.20671335]
[1754414515405,0.20300759,113350.0,113340.0,1.46961335]
[1754414515600,0.02651859,113350.0,113340.0,1.46961335]
[1754414515900,0.002,113350.0,113340.0,1.46961335]
[1754414516299,0.1784795,113350.0,113340.0,1.46961335]
[1754414516804,0.1774795,113350.0,113340.0,1.46961335]
[1754414517296,0.001,113350.0,113340.0,1.46961335]
[1754414517493,0.7641228,113360.0,113350.0,0.2976395]
[1754414517704,0.80994889,113360.0,113350.0,1.38373301]
[1754414518800,0.81094889,113360.0,113350.0,1.38373301]
[1754414519795,0.81194889,113360.0,113350.0,1.38373301]
[1754414520005,0.65407109,113360.0,113350.0,1.38373301]
[1754414520199,0.27200109,113360.0,113350.0,1.38373301]
[1754414520400,0.20303319,113360.0,113350.0,1.38373301]
[1754414521401,0.20303319,113360.0,113350.0,1.64663301]
[1754414521608,0.22584319,113360.0,113350.0,1.64663301]
[1754414521906,0.28190319,113360.0,113350.0,1.64663301]
[1754414522308,0.21226319,113360.0,113350.0,1.64663301]
[1754414522801,0.24146319,113360.0,113350.0,1.64663301]
[1754414522997,0.29752319,113360.0,113350.0,1.64663301]
[1754414523908,0.31879319,113360.0,113350.0,1.64663301]
[1754414525804,0.67959319,113360.0,113350.0,1.64663301]
[1754414526810,0.31879319,113360.0,113350.0,1.64663301]
[1754414527012,0.26273319,113360.0,113350.0,1.64663301]
[1754414527206,0.21226319,113360.0,113350.0,1.64663301]
[1754414527412,0.56383319,113360.0,113350.0,1.64663301]
[1754414527607,0.65832319,113360.0,113350.0,1.64663301]
[1754414528008,0.67959319,113360.0,113350.0,1.64663301]
[1754414528209,0.31879319,113360.0,113350.0,1.64663301]
[1754414528708,0.67959319,113360.0,113350.0,1.64663301]
[1754414529108,0.31879319,113360.0,113350.0,1.64663301]
[1754414531113,0.67959319,113360.0,113350.0,1.1751395]
[1754414531319,0.31879319,113360.0,113350.0,1.38373301]
[1754414531513,0.02655609,113360.0,113350.0,1.74453301]
[1754414532415,0.02655609,113360.0,113350.0,1.74457301]
[1754414532819,0.7412238,113380.0,113370.0,0.2242484]
[1754414533016,0.7412238,113380.0,113370.0,1.38310191]
[1754414533515,0.7412238,113380.0,113370.0,0.9116084]
[1754414534210,0.7442238,113380.0,113370.0,0.9116084]
[1754414534816,0.7442238,113380.0,113370.0,0.1764484]
[1754414535117,0.7442238,113380.0,113370.0,0.2832384]
[1754414535320,0.7442238,113380.0,113370.0,0.8972784]
[1754414535620,0.7442238,113380.0,113370.0,1.38314191]
[1754414535820,0.6376938,113380.0,113370.0,0.7904884]
[1754414536120,0.7442238,113380.0,113370.0,0.7904884]
[1754414537422,0.7442238,113380.0,113370.0,0.9116484]
[1754414541819,0.7442238,113380.0,113370.0,0.7352]
[1754414542527,0.7442238,113380.0,113370.0,0.9116485]
[1754414543217,0.7442238,113380.0,113370.0,0.7352]
[1754414543616,0.2946684,113370.0,113360.0,0.4834637]
[1754414543822,1.12696191,113370.0,113360.0,1.0971037]
[1754414544022,0.6554684,113370.0,113360.0,1.1103511]
[1754414544320,0.6554684,113370.0,113360.0,1.1252011]
[1754414544619,0.6554684,113370.0,113360.0,1.59669461]
[1754414544825,0.67934234,113370.0,113360.0,1.59669461]
[1754414548025,0.67934234,113370.0,113360.0,1.33379461]
[1754414550522,0.60841234,113370.0,113360.0,1.33379461]
[1754414550727,0.62245234,113370.0,113360.0,1.33379461]
[1754414551423,0.57061234,113370.0,113360.0,1.33379461]
[1754414552027,0.20981234,113370.0,113360.0,1.33379461]
[1754414552229,0.56112234,113370.0,113360.0,1.33379461]
[1754414553025,0.62245234,113370.0,113360.0,1.33379461]
[1754414553327,0.67934234,113370.0,113360.0,1.33379461]
[1754414554432,0.60841234,113370.0,113360.0,1.33379461]
[1754414556329,0.67934234,113370.0,113360.0,1.33379461]
[1754414556731,0.60841234,113370.0,113360.0,1.33379461]
[1754414557433,0.67934234,113370.0,113360.0,1.33379461]
[1754414559936,0.60841234,113370.0,113360.0,1.33379461]
[1754414560135,0.57061234,113370.0,113360.0,1.33379461]
[1754414560729,0.20032234,113370.0,113360.0,1.80528812]
[1754414560925,0.1764484,113370.0,113360.0,1.80528812]
[1754414561130,0.20034487,113370.0,113360.0,1.80528812]
[1754414564031,0.1764484,113370.0,113360.0,1.80528812]
[1754414566532,0.1764484,113370.0,113360.0,1.33379461]
[1754414569940,0.2946684,113370.0,113360.0,1.33379461]
[1754414571642,0.1859384,113370.0,113360.0,1.33379461]
[1754414571941,0.1764484,113370.0,113360.0,1.33379461]
[1754414572542,0.20026108,113370.0,113360.0,1.33379461]
[1754414572937,0.1764484,113370.0,113360.0,1.33379461]
[1754414573138,0.2002607,113370.0,113360.0,1.33379461]
[1754414574540,0.0238123,113370.0,113360.0,0.9089711]
[1754414574742,0.7658843,113390.0,113380.0,0.2935229]
[1754414574944,0.7904443,113390.0,113380.0,1.37993641]
[1754414575848,0.7934443,113390.0,113380.0,1.37993641]
[1754414576337,0.6757667,113390.0,113380.0,1.37993641]
[1754414576646,0.1794329,113390.0,113380.0,1.37993641]
[1754414577541,0.003,113390.0,113380.0,1.37993641]
[1754414578338,0.1794174,113390.0,113380.0,1.37993641]
[1754414579340,0.1888674,113390.0,113380.0,1.37993641]
[1754414579546,0.2031674,113390.0,113380.0,1.37993641]
[1754414579844,0.2624374,113390.0,113380.0,1.37993641]
[1754414580342,0.1794174,113390.0,113380.0,1.37993641]
[1754414581648,0.003,113390.0,113380.0,1.37993641]
[1754414582448,0.003,113390.0,113380.0,1.64283641]
[1754414583754,0.003,113390.0,113380.0,2.00363641]
[1754414584051,0.003,113390.0,113380.0,1.5321429]
[1754414584242,0.003,113390.0,113380.0,2.00363641]
[1754414585350,0.1794173,113390.0,113380.0,2.00363641]
[1754414586246,0.1794173,113390.0,113380.0,1.5321429]
[1754414586451,0.1888673,113390.0,113380.0,2.00363641]
[1754414586651,0.01245,113390.0,113380.0,1.64283641]
[1754414586954,0.1888673,113390.0,113380.0,1.64283641]
[1754414587353,0.2051573,113390.0,113380.0,1.64283641]
[1754414588250,0.003,113390.0,113380.0,1.64283641]
[1754414588555,0.003,113390.0,113380.0,2.00363641]
[1754414589055,0.1794173,113390.0,113380.0,1.64283641]
[1754414589353,0.1888673,113390.0,113380.0,1.64283641]
[1754414589554,0.1794173,113390.0,113380.0,1.64283641]
[1754414590454,0.003,113390.0,113380.0,1.64283641]
[1754414591055,0.1794173,113390.0,113380.0,1.64283641]
[1754414591957,0.003,113390.0,113380.0,1.64283641]
[1754414592157,0.1794173,113390.0,113380.0,1.64283641]
[1754414592954,0.3003073,113390.0,113380.0,1.64283641]
[1754414593849,0.12389,113390.0,113380.0,1.64283641]
[1754414594555,0.06462,113390.0,113380.0,1.64283641]
[1754414594757,0.05032,113390.0,113380.0,1.64283641]
[1754414595352,0.01245,113390.0,113380.0,1.64283641]
[1754414595560,0.1888674,113390.0,113380.0,1.64283641]
[1754414596559,0.01245,113390.0,113380.0,1.64283641]
[1754414596859,0.003,113390.0,113380.0,1.64283641]
[1754414599156,0.1794173,113390.0,113380.0,1.1713429]
[1754414599354,0.1794173,113390.0,113380.0,1.64283641]
[1754414599658,0.003,113390.0,113380.0,1.64283641]
[1754414599859,0.7688336,113400.0,113390.0,0.2935073]
[1754414600058,0.7688336,113400.0,113390.0,0.76500081]
[1754414600360,0.5988351,113400.0,113390.0,0.77367682]
[1754414600552,0.5466651,113400.0,113390.0,0.77367682]
[1754414601452,0.1858651,113400.0,113390.0,0.77367682]
[1754414601956,0.1993951,113400.0,113390.0,0.77367682]
[1754414602263,0.2579951,113400.0,113390.0,0.77467682]
[1754414602462,0.2964751,113400.0,113390.0,0.77467682]
[1754414602757,0.2964751,113400.0,113390.0,0.77367682]
[1754414603162,0.6572751,113400.0,113390.0,0.77367682]
[1754414603861,0.68070727,113400.0,113390.0,1.38711682]
[1754414604159,0.68070727,113400.0,113390.0,1.63582682]
[1754414604359,0.68070727,113400.0,113390.0,1.65095682]
[1754414604956,0.68071809,113400.0,113390.0,1.64995682]
[1754414605656,0.68071809,113400.0,113390.0,1.01395081]
[1754414605855,0.68071809,113400.0,113390.0,1.0528373]
[1754414606260,0.68171809,113400.0,113390.0,0.87642]
[1754414606467,0.68171809,113400.0,113390.0,0.2629]
[1754414606655,0.68171809,113400.0,113390.0,1.0527574]
[1754414606960,0.68171809,113400.0,113390.0,1.1230274]
[1754414607762,0.68171809,113400.0,113390.0,1.59452091]
[1754414608162,0.68171809,113400.0,113390.0,1.60347603]
[1754414608759,0.68171809,113400.0,113390.0,1.34057603]
[1754414609561,0.60958809,113400.0,113390.0,1.34057603]
[1754414609864,0.68071809,113400.0,113390.0,1.34057603]
[1754414612263,0.68071809,113400.0,113390.0,1.33162091]
[1754414612858,0.68071809,113400.0,113390.0,1.26135091]
[1754414613362,0.68071809,113400.0,113390.0,1.35496091]
[1754414613562,0.68071809,113400.0,113390.0,1.36909091]
[1754414615661,0.62211809,113400.0,113390.0,1.36909091]
[1754414615967,0.68071809,113400.0,113390.0,1.36909091]
[1754414616868,0.68071809,113400.0,113390.0,0.9069874]
[1754414617465,0.68071809,113400.0,113390.0,0.76484091]
[1754414617665,0.68071809,113400.0,113390.0,1.37860091]
[1754414618072,0.68071809,113400.0,113390.0,0.76484091]
[1754414618370,0.68071809,113400.0,113390.0,1.37848091]
[1754414618864,0.68071809,113400.0,113390.0,0.76484091]
[1754414619066,0.68071809,113400.0,113390.0,1.37848091]
[1754414621171,0.68071809,113400.0,113390.0,1.37840091]
[1754414622271,0.68071809,113400.0,113390.0,0.9069074]
[1754414622472,0.68071809,113400.0,113390.0,0.76484091]
[1754414622774,0.68071809,113400.0,113390.0,1.37820091]
[1754414624466,0.68071809,113400.0,113390.0,0.76484091]
[1754414624767,0.2969729,113380.0,113370.0,1.5548084]
[1754414625073,0.2969729,113380.0,113370.0,2.63946191]
[1754414625074,0.68121589,113380.0,113370.0,2.63946191]
[1754414626172,0.68121589,113380.0,113370.0,2.64146191]
[1754414626473,0.56067589,113380.0,113370.0,2.65041382]
[1754414627273,0.56067589,113380.0,113370.0,2.64841382]
[1754414627975,0.56067589,113380.0,113370.0,1.47507382]
[1754414629374,0.56067589,113380.0,113370.0,1.47607382]
[1754414630176,0.56067589,113380.0,113370.0,1.47507382]
[1754414630375,0.56067589,113380.0,113370.0,1.47487382]
[1754414631779,0.56067589,113380.0,113370.0,0.86203382]
[1754414631979,0.60821589,113380.0,113370.0,1.47459382]
[1754414632179,0.68042589,113380.0,113370.0,1.47459382]
[1754414632779,0.58553589,113380.0,113370.0,1.47459382]
[1754414633384,0.58553589,113380.0,113370.0,0.86203382]
[1754414633579,0.58553589,113380.0,113370.0,1.47439382]
[1754414633781,0.56067589,113380.0,113370.0,1.73729382]
[1754414634076,0.19987589,113380.0,113370.0,1.73729382]
[1754414634276,0.1764329,113380.0,113370.0,1.73729382]
[1754414635474,0.4931224,113390.0,113380.0,0.1764329]
[1754414635680,0.6695532,113390.0,113380.0,0.76518641]
[1754414636273,0.70204545,113390.0,113380.0,0.2936929]
[1754414636486,0.77425545,113390.0,113380.0,0.76518641]
[1754414636791,0.69298545,113390.0,113380.0,0.76518641]
[1754414637288,0.69298545,113390.0,113380.0,0.2936929]
[1754414637483,0.73114545,113390.0,113380.0,0.76518641]
[1754414637689,0.78967545,113390.0,113380.0,0.76518641]
[1754414638088,0.81151545,113390.0,113380.0,0.76518641]
[1754414638283,0.31255775,113390.0,113380.0,0.76518641]
[1754414638485,0.65793775,113390.0,113380.0,0.76518641]
[1754414638686,0.64887775,113390.0,113380.0,0.76518641]
[1754414640280,0.56066305,113390.0,113380.0,0.76518641]
[1754414640487,0.7158416,113400.0,113390.0,0.2936774]
[1754414640787,0.6276113,113410.0,113400.0,0.2936619]
[1754414640987,0.6276113,113410.0,113400.0,0.76515541]
[1754414641189,0.6998213,113410.0,113400.0,0.76515541]
[1754414642187,0.2949163,113410.0,113400.0,0.76515541]
[1754414642487,0.1763863,113410.0,113400.0,0.76515541]
[1754414643285,0.1763863,113410.0,113400.0,1.23664892]
[1754414643994,0.1763863,113410.0,113400.0,1.30899613]
[1754414644195,0.19979794,113410.0,113400.0,1.30899613]
[1754414644390,0.1763863,113410.0,113400.0,1.30899613]
[1754414645593,0.1763863,113410.0,113400.0,1.57289613]
[1754414645988,0.1763863,113410.0,113400.0,1.57389613]
[1754414647596,0.1763863,113410.0,113400.0,1.10240262]
[1754414650094,0.6093901,113420.0,113400.0,1.10240262]
[1754414650095,0.7879982,113420.0,113410.0,0.2225563]
[1754414650294,0.81138367,113420.0,113410.0,1.37725981]
[1754414651196,0.81138367,113420.0,113410.0,1.64015981]
[1754414651493,0.4271982,113420.0,113410.0,1.64015981]
[1754414651698,0.7879982,113420.0,113410.0,1.64015981]
[1754414652501,0.6253726,113420.0,113410.0,1.64015981]
[1754414653202,0.6344326,113420.0,113410.0,1.64015981]
[1754414653404,0.7439026,113420.0,113410.0,1.64015981]
[1754414653903,0.6253726,113420.0,113410.0,1.64896877]
[1754414654604,0.6253726,113420.0,113410.0,1.17747526]
[1754414654803,0.6253726,113420.0,113410.0,1.64896877]
[1754414655803,0.5812773,113420.0,113410.0,1.64896877]
[1754414657295,0.5812773,113420.0,113410.0,1.17747526]
[1754414657497,0.5812773,113420.0,113410.0,1.64896877]
[1754414659601,0.6534661,113430.0,113420.0,0.1763707]
[1754414659801,0.6997861,113430.0,113420.0,0.76512421]
[1754414660502,0.1763708,113420.0,113410.0,0.36773706]
[1754414660705,0.6557008,113420.0,113410.0,0.85710246]
[1754414661009,0.47933,113420.0,113410.0,1.42099597]
[1754414661201,0.47933,113420.0,113410.0,1.42999597]
[1754414662398,0.40712,113420.0,113410.0,1.42999597]
[1754414662603,0.47696,113420.0,113410.0,1.42999597]
[1754414663511,0.6533308,113420.0,113410.0,1.42999597]
[1754414664506,0.6533308,113420.0,113410.0,1.43014597]
[1754414665707,0.47696,113420.0,113410.0,1.43014597]
[1754414666403,0.47696,113420.0,113410.0,1.69304597]
[1754414667312,0.6533307,113420.0,113410.0,1.69304597]
[1754414667708,0.6533307,113420.0,113410.0,1.22155246]
[1754414668010,0.6533307,113420.0,113410.0,1.69304597]
[1754414668508,0.47696,113420.0,113410.0,1.69304597]
[1754414669010,0.47696,113420.0,113410.0,1.43014597]
[1754414669308,0.50043058,113420.0,113410.0,1.43014597]
[1754414671906,0.67680118,113420.0,113410.0,0.00880896]
[1754414672110,1.14829469,113420.0,113410.0,0.7882662]
[1754414672306,0.50043058,113420.0,113410.0,1.27632971]
[1754414672510,0.67680118,113420.0,113410.0,1.34819971]
[1754414673007,0.67680118,113420.0,113410.0,1.27632971]
[1754414673213,0.67680118,113420.0,113410.0,1.37994971]
[1754414673811,0.67680118,113420.0,113410.0,1.38870358]
[1754414674807,0.67680118,113420.0,113410.0,1.33215358]
[1754414675113,0.67680118,113420.0,113410.0,1.37927358]
[1754414676109,0.67680118,113420.0,113410.0,0.76743358]
[1754414676316,0.67680118,113420.0,113410.0,1.38866358]
[1754414677109,0.1996763,113410.0,113400.0,0.33693731]
[1754414677314,0.67836688,113410.0,113400.0,1.54046082]
[1754414677711,0.56065688,113410.0,113400.0,1.54046082]
[1754414677914,0.67836688,113410.0,113400.0,1.54046082]
[1754414678315,0.67836688,113410.0,113400.0,1.54146082]
[1754414678516,0.67836688,113410.0,113400.0,1.54246082]
[1754414679816,0.67836688,113410.0,113400.0,1.55142482]
[1754414683616,0.67836688,113410.0,113400.0,0.07434721]
[1754414683920,1.14986039,113410.0,113400.0,0.6138]
[1754414684122,1.14986039,113410.0,113400.0,0.7902018]
[1754414684321,0.67836688,113410.0,113400.0,0.7902018]
[1754414684614,0.6548963,113410.0,113400.0,0.7902018]
[1754414684915,0.67937504,113410.0,113400.0,0.7892018]
[1754414685114,0.67937504,113410.0,113400.0,0.8849518]
[1754414685821,0.67937504,113410.0,113400.0,0.8990018]
[1754414687318,0.67937504,113410.0,113400.0,0.9083918]
[1754414689826,0.67937504,113410.0,113400.0,1.37988531]
[1754414690018,0.1867463,113410.0,113400.0,1.37988531]
[1754414690224,0.1773863,113410.0,113400.0,1.37988531]
[1754414690526,0.1773862,113410.0,113400.0,1.37988531]
[1754414691130,0.1763862,113410.0,113400.0,1.37988531]
[1754414691921,0.6253731,113420.0,113410.0,0.2940562]
[1754414692125,0.64882853,113420.0,113410.0,0.76554971]
[1754414693531,0.60473243,113420.0,113410.0,0.76554971]
[1754414693823,0.581277,113420.0,113410.0,0.76554971]
[1754414694627,0.745127,113440.0,113430.0,0.209035]
[1754414694823,0.76858108,113440.0,113430.0,1.37723851]
[1754414696329,0.76858108,113440.0,113430.0,1.38589171]
[1754414696522,0.77158108,113440.0,113430.0,1.38589171]
[1754414697329,0.76858108,113440.0,113430.0,1.38589171]
[1754414698236,0.67492108,113440.0,113430.0,1.38589171]
[1754414698741,0.76858108,113440.0,113430.0,1.38589171]
[1754414699033,0.38425408,113440.0,113430.0,1.38589171]
[1754414699229,0.3462017,113450.0,113440.0,0.172199]
[1754414699425,0.3021196,113450.0,113440.0,0.69184251]
[1754414700041,0.2204096,113450.0,113440.0,0.69184251]
[1754414700329,0.6632796,113450.0,113440.0,1.30340251]
[1754414700537,0.7251854,113450.0,113440.0,1.37706301]
[1754414701329,0.7020096,113450.0,113440.0,1.37706301]
[1754414703837,0.6083496,113450.0,113440.0,1.37706301]
[1754414704834,0.5822096,113450.0,113440.0,1.37706301]
[1754414705235,0.6639196,113450.0,113440.0,1.37706301]
[1754414705439,0.7020096,113450.0,113440.0,1.37706301]
[1754414710039,0.6300696,113450.0,113440.0,1.37706301]
[1754414711135,0.6442496,113450.0,113440.0,1.37706301]
[1754414711336,0.7020096,113450.0,113440.0,1.37706301]
[1754414711638,0.7020096,113450.0,113440.0,1.37690311]
[1754414711841,0.7020096,113450.0,113440.0,1.25923311]
[1754414712035,0.7020096,113450.0,113440.0,0.64783311]
[1754414712344,0.7020096,113450.0,113440.0,1.32875311]
[1754414714343,0.72514308,113450.0,113440.0,1.32875311]
[1754414714843,0.60534308,113450.0,113440.0,1.32875311]
[1754414715038,0.65320308,113450.0,113440.0,1.32875311]
[1754414715248,0.70059308,113450.0,113440.0,1.32875311]
[1754414715937,0.72514308,113450.0,113440.0,1.32875311]
[1754414717542,0.65320308,113450.0,113440.0,1.32875311]
[1754414718038,0.72514308,113450.0,113440.0,1.32875311]
[1754414725144,0.65320308,113450.0,113440.0,1.32875311]
[1754414725339,0.65320308,113450.0,113440.0,0.8899596]
[1754414725550,0.65320308,113450.0,113440.0,1.37808311]
[1754414726244,0.72409308,113450.0,113440.0,1.37808311]
[1754414728250,0.72409308,113450.0,113440.0,0.9064296]
[1754414728453,0.72409308,113450.0,113440.0,1.37792311]
[1754414734553,0.72409308,113450.0,113440.0,1.34663311]
[1754414734753,1.19558659,113450.0,113440.0,0.7874996]
[1754414734950,0.72409308,113450.0,113440.0,0.8923696]
[1754414735155,0.72409308,113450.0,113440.0,1.37816311]
[1754414740363,0.72309308,113450.0,113440.0,1.37816311]
[1754414740564,0.64539308,113450.0,113440.0,1.37816311]
[1754414741360,0.66015308,113450.0,113440.0,1.37816311]
[1754414741556,0.83634488,113450.0,113440.0,0.61108]
[1754414741765,1.16934208,113450.0,113440.0,0.73025]
[1754414741961,1.16934208,113450.0,113440.0,1.20174351]
[1754414742161,1.21581208,113450.0,113440.0,1.20174351]
[1754414742965,1.21681208,113450.0,113440.0,1.20174351]
[1754414743265,1.21681208,113450.0,113440.0,1.37808301]
[1754414743761,1.21681208,113450.0,113440.0,0.73025]
[1754414744158,1.21681208,113450.0,113440.0,0.73021]
[1754414744860,1.21681208,113450.0,113440.0,0.9065495]
[1754414746160,1.21681208,113450.0,113440.0,0.73021]
[1754414746561,1.21681208,113450.0,113440.0,0.9065496]
[1754414747965,0.76784328,113450.0,113440.0,1.37804311]
[1754414748770,0.69695328,113450.0,113440.0,1.37804311]
[1754414748970,0.76784328,113450.0,113440.0,1.37804311]
[1754414749267,0.76784328,113450.0,113440.0,0.9065496]
[1754414749463,0.76784328,113450.0,113440.0,1.37804311]
[1754414749659,0.76684328,113450.0,113440.0,1.37804311]
[1754414752168,0.76684328,113450.0,113440.0,0.9065496]
[1754414752368,0.76684328,113450.0,113440.0,1.37804311]
[1754414753071,0.76684328,113450.0,113440.0,0.9064296]
[1754414753270,0.76684328,113450.0,113440.0,1.37792311]
[1754414754868,0.76684328,113450.0,113440.0,0.9064296]
[1754414755069,0.76684328,113450.0,113440.0,1.37792311]
[1754414756071,0.76684328,113450.0,113440.0,0.9064296]
[1754414756269,0.76684328,113450.0,113440.0,1.37792311]
[1754414759168,0.76684328,113450.0,113440.0,0.9064296]
[1754414759373,0.76684328,113450.0,113440.0,1.37792311]
[1754414763172,0.40604328,113450.0,113440.0,1.37792311]
[1754414763476,0.76678942,113450.0,113440.0,1.37792311]
[1754414764676,0.76678942,113450.0,113440.0,1.43559363]
[1754414765469,1.29595345,113450.0,113440.0,1.43559363]
[1754414766577,0.76678942,113450.0,113440.0,1.43559363]
[1754414766972,0.76678942,113450.0,113440.0,1.25925403]
[1754414767177,0.76678942,113450.0,113440.0,1.43559343]
[1754414769982,0.76678942,113450.0,113440.0,0.9064294]
[1754414770178,0.76678942,113450.0,113440.0,1.43559343]
[1754414772085,0.40598942,113450.0,113440.0,1.43559343]
[1754414772284,0.76678942,113450.0,113440.0,1.43559343]
[1754414777485,1.29595345,113450.0,113440.0,1.43559343]
[1754414777885,0.76678942,113450.0,113440.0,1.43559343]
[1754414778091,1.29595345,113450.0,113440.0,1.43559343]
[1754414778291,0.76678942,113450.0,113440.0,1.43559343]
[1754414778494,1.29595345,113450.0,113440.0,1.43559343]
[1754414779001,0.76678942,113450.0,113440.0,1.43559343]
[1754414779186,1.29595345,113450.0,113440.0,0.9064296]
[1754414779388,1.29595345,113450.0,113440.0,1.43559363]
[1754414779893,0.76678942,113450.0,113440.0,1.43559363]
[1754414780092,1.29595345,113450.0,113440.0,1.43559363]
[1754414780293,0.76678942,113450.0,113440.0,1.43559363]
[1754414780497,0.76678942,113450.0,113440.0,1.43563363]
[1754414789001,0.69589942,113450.0,113440.0,1.43563363]
[1754414789202,0.71001942,113450.0,113440.0,1.43563363]
[1754414789399,0.76820942,113450.0,113440.0,1.43563363]
[1754414789799,0.76820942,113450.0,113440.0,0.9064696]
[1754414790101,0.02307962,113450.0,113440.0,1.96479766]
[1754414790300,0.02307962,113450.0,113440.0,2.32559766]
[1754414790605,0.2882866,113460.0,113450.0,0.272288]
[1754414790799,0.31157171,113460.0,113450.0,1.33061606]
[1754414791004,0.32062171,113460.0,113450.0,1.33061606]
[1754414791305,0.33474171,113460.0,113450.0,1.33061606]
[1754414791510,0.33474171,113460.0,113450.0,0.80145203]
[1754414791703,0.28776171,113460.0,113450.0,0.80145203]
[1754414792006,0.04709511,113460.0,113450.0,1.33061606]
[1754414792206,0.02328511,113460.0,113450.0,1.69141606]
[1754414792405,0.3351044,113470.0,113460.0,0.120787]
[1754414792710,0.40687079,113470.0,113460.0,1.86994506]
[1754414793699,0.40787079,113470.0,113460.0,1.86994506]
[1754414794308,0.31971909,113470.0,113460.0,1.86994506]
[1754414794609,0.404866,113490.0,113480.0,0.2500574]
[1754414794610,0.7443562,113490.0,113480.0,0.2500574]
[1754414794811,0.76748074,113490.0,113480.0,1.41436143]
[1754414795005,0.72341194,113490.0,113480.0,1.41436143]
[1754414795201,0.46869454,113490.0,113480.0,1.41436143]
[1754414795506,0.6562119,113490.0,113480.0,1.41436143]
[1754414796003,0.6592119,113490.0,113480.0,1.41436143]
[1754414796399,0.6592119,113490.0,113480.0,1.48326051]
[1754414796703,0.6592119,113490.0,113480.0,1.42406495]
[1754414796903,0.6592119,113490.0,113480.0,1.43305784]
[1754414797205,0.6501619,113490.0,113480.0,1.43305784]
[1754414797409,0.5729219,113490.0,113480.0,1.43305784]
[1754414797710,0.6368019,113490.0,113480.0,1.43305784]
[1754414798008,0.003,113490.0,113480.0,1.90302631]
[1754414798212,0.003,113490.0,113480.0,2.26382631]
[1754414799210,0.02681,113490.0,113480.0,1.79385784]
[1754414799906,0.02681,113490.0,113480.0,1.32388937]
[1754414800100,0.003,113490.0,113480.0,1.79385784]
[1754414800504,0.003,113490.0,113480.0,2.26382631]
[1754414800907,0.1792619,113490.0,113480.0,2.26382631]
[1754414801111,0.2030719,113490.0,113480.0,1.32388937]
[1754414801300,0.176225,113520.0,113490.0,0.0440632]
[1754414801500,0.295375,113520.0,113510.0,0.39619927]
[1754414802107,0.200035,113520.0,113510.0,0.39619927]
[1754414802407,0.2020253,113520.0,113510.0,0.39619927]
[1754414802713,0.02581,113520.0,113510.0,0.39619927]
[1754414802914,0.002,113520.0,113510.0,0.39619927]
[1754414803112,0.6489272,113530.0,113510.0,0.71293447]
[1754414803312,0.6489272,113530.0,113520.0,1.18243907]
[1754414804715,0.7442672,113530.0,113520.0,1.18243907]
[1754414805408,0.7442672,113530.0,113520.0,0.5362553]
[1754414805609,0.7442672,113530.0,113520.0,0.7124706]
[1754414805810,0.7442672,113530.0,113520.0,0.5362553]
[1754414806111,0.7442672,113530.0,113520.0,0.7124706]
[1754414808317,0.7442672,113530.0,113520.0,0.64618377]
[1754414808618,0.7442672,113530.0,113520.0,1.25606377]
[1754414809210,0.6251172,113530.0,113520.0,1.25606377]
[1754414809415,0.7442672,113530.0,113520.0,1.25606377]
[1754414809614,0.76710546,113530.0,113520.0,1.25606377]
[1754414813716,0.76710546,113530.0,113520.0,1.07984847]
[1754414813916,0.76710546,113530.0,113520.0,0.60988]
[1754414814318,0.76710546,113530.0,113520.0,0.7860953]
[1754414814516,0.02333,113500.0,113490.0,1.8880373]
[1754414814718,0.2876921,113510.0,113500.0,0.1762463]
[1754414814922,0.2224168,113510.0,113500.0,1.00701477]
[1754414815122,0.1990868,113510.0,113500.0,1.00701477]
[1754414816424,0.1990868,113510.0,113500.0,1.61829477]
[1754414817326,0.1990868,113510.0,113500.0,1.61817477]
[1754414818028,0.1990868,113510.0,113500.0,1.61917477]
[1754414819124,0.2224168,113510.0,113500.0,1.61917477]
[1754414820129,0.1990868,113510.0,113500.0,1.88207477]
[1754414821729,0.022846,113510.0,113500.0,2.35795477]
[1754414823227,0.1990768,113510.0,113500.0,2.35795477]
[1754414823729,0.2224068,113510.0,113500.0,2.05795477]
[1754414824126,0.022846,113510.0,113500.0,2.05795477]
[1754414824337,0.3083943,113520.0,113510.0,0.1762309]
[1754414824525,0.31049968,113520.0,113510.0,0.64619937]
[1754414824725,0.31049968,113520.0,113510.0,1.00699937]
[1754414825337,0.40552968,113520.0,113510.0,0.64619937]
[1754414826124,0.39072968,113520.0,113510.0,0.90909937]
[1754414826330,0.40552968,113520.0,113510.0,0.90909937]
[1754414831136,0.76632968,113520.0,113510.0,0.2629]
[1754414831331,0.2945908,113510.0,113500.0,0.73432827]
[1754414831636,0.67822338,113510.0,113500.0,1.30074757]
[1754414831934,0.67822338,113510.0,113500.0,0.8307791]
[1754414832123,0.67822338,113510.0,113500.0,1.25668937]
[1754414832526,0.67822338,113510.0,113500.0,1.25768937]
[1754414832735,0.67822338,113510.0,113500.0,0.7877209]
[1754414832928,0.67822338,113510.0,113500.0,0.002]
[1754414833129,0.67822338,113510.0,113500.0,0.61244]
[1754414833330,0.67822338,113510.0,113500.0,1.25865487]
[1754414836534,0.31742338,113510.0,113500.0,1.25865487]
[1754414839225,0.67822338,113510.0,113500.0,1.25865487]
[1754414843834,0.67822338,113510.0,113500.0,1.52155487]
[1754414845638,0.67822338,113510.0,113500.0,1.0515864]
[1754414845839,0.67822338,113510.0,113500.0,1.52155487]
[1754414846639,0.67762365,113510.0,113500.0,1.34530847]
[1754414847943,0.67762365,113510.0,113500.0,1.52155487]
[1754414848942,0.67762365,113510.0,113500.0,1.34530847]
[1754414849442,0.6553908,113510.0,113500.0,1.34530847]
[1754414849645,1.14758877,113510.0,113500.0,0.002]
[1754414849844,1.14758877,113510.0,113500.0,0.61188]
[1754414856253,0.6776203,113510.0,113500.0,0.7881264]
[1754414856454,0.6776203,113510.0,113500.0,1.25809487]
[1754414857349,0.6776203,113510.0,113500.0,0.7881264]
[1754414859362,0.6776203,113510.0,113500.0,1.25809487]
[1754414859655,0.6786003,113510.0,113500.0,1.25809487]
[1754414861146,0.6786003,113510.0,113500.0,0.7881264]
[1754414861455,0.6786003,113510.0,113500.0,1.52099487]
[1754414863662,0.6786003,113510.0,113500.0,0.87478]
[1754414864559,0.6786003,113510.0,113500.0,1.0510264]
[1754414864857,0.6786003,113510.0,113500.0,0.87478]
[1754414865056,1.14856877,113510.0,113500.0,0.87478]
[1754414865651,0.6774403,113510.0,113500.0,1.0510263]
[1754414865857,0.6774403,113510.0,113500.0,1.52099477]
[1754414868760,0.2468208,113510.0,113500.0,1.25809477]
[1754414868959,0.1762308,113510.0,113500.0,1.25809477]
[1754414869260,0.1998308,113510.0,113500.0,1.61889477]
[1754414869456,0.1998308,113510.0,113500.0,1.61893477]
[1754414869762,0.2643372,113520.0,113510.0,0.1762308]
[1754414869950,0.2879372,113520.0,113510.0,0.64619927]
[1754414872561,0.463213,113530.0,113520.0,0.1762154]
[1754414872862,0.02357,113540.0,113530.0,0.1321426]
[1754414873064,0.1997543,113540.0,113530.0,1.18315957]
[1754414874058,0.1997543,113540.0,113530.0,1.13911087]
[1754414875068,0.2007543,113540.0,113530.0,1.13911087]
[1754414875262,0.2007543,113540.0,113530.0,0.6691424]